fUST/lending_fUST_20250605
["ID","MTS","AMOUNT","RATE_DAILY","PERIOD"]
[364275562,1749055840717,-501.11265055,0.00021528,2]
[364275563,1749055840728,-500.50520965,0.00021528,2]
[364275564,1749055840739,-1000.0,0.00021528,2]
[364275565,1749055840750,-250.0,0.00021587,2]
[364275566,1749055840762,-1161.32,0.00021643,2]
[364275567,1749055840777,-440.0,0.00021643,2]
[364275568,1749055840789,-952.84,0.00021643,2]
[364275569,1749055840801,-921.34,0.00021643,2]
[364275570,1749055840814,-786.55,0.00021643,2]
[364275571,1749055840826,-942.56,0.00021643,2]
[364275572,1749055840837,-440.0,0.00021643,2]
[364275573,1749055840850,-1000.0,0.00021698,2]
[364275574,1749055840862,-1000.0,0.00021698,2]
[364275575,1749055840874,-1000.0,0.00021698,2]
[364275576,1749055840886,-1000.0,0.00021698,2]
[364275577,1749055840898,-966.57720118,0.00021762,5]
[364275578,1749055840909,-1000.0,0.00021788,2]
[364275579,1749055840918,-1000.0,0.00021788,2]
[364275580,1749055840929,-1200.0,0.00021788,2]
[364275581,1749055840938,-175.37431229,0.00021791,2]
[364275582,1749055840948,-49565.63,0.000218,2]
[364275583,1749055840959,-1000.0,0.00021817,2]
[364275584,1749055840968,-1000.0,0.00021817,2]
[364275585,1749055840979,-503.81646108,0.00021817,2]
[364275586,1749055840988,-151.0,0.00021916,2]
[364275587,1749055840998,-192.6272,0.00021916,2]
[364275588,1749055841008,-192.6272,0.00021916,2]
[364275589,1749055841159,-151.0,0.00021916,2]
[364275590,1749055841175,-500.0,0.00021917,2]
[364275591,1749055841185,-500.0,0.00021917,2]
[364275592,1749055841194,-500.0,0.00021917,2]
[364275593,1749055841204,-500.0,0.00021917,2]
[364275594,1749055841213,-644.67946039,0.00021917,2]
[364275595,1749055841223,-1161.32,0.00021917,2]
[364275596,1749055841233,-266.26,0.00021917,2]
[364275597,1749055841242,-952.84,0.00021917,2]
[364275598,1749055841252,-921.34,0.00021917,2]
[364275599,1749055841261,-786.55,0.00021917,2]
[364275600,1749055841271,-942.56,0.00021917,2]
[364275601,1749055841280,-500.0,0.00021917,2]
[364275602,1749055841290,-440.0,0.00021917,2]
[364275603,1749055841299,-500.0,0.00022,2]
[364275604,1749055841308,-500.0,0.00022,2]
[364275605,1749055841318,-500.0,0.00022,2]
[364275606,1749055841327,-89810.44,0.00022,7]
[364275607,1749055841337,-966.57720118,0.00022003,6]
[364275608,1749055841346,-1500.0,0.00022051,2]
[364275609,1749055841355,-500.0,0.00022076,2]
[364275610,1749055841365,-151.0,0.000221,7]
[364275611,1749055841375,-151.0,0.000221,7]
[364275612,1749055841385,-151.0,0.000221,7]
[364275613,1749055841394,-151.0,0.000221,7]
[364275614,1749055841404,-151.0,0.000221,7]
[364275615,1749055841413,-151.0,0.000221,7]
[364275616,1749055841423,-151.0,0.000221,7]
[364275617,1749055841432,-151.0,0.000221,7]
[364275618,1749055841442,-151.0,0.000221,7]
[364275619,1749055841451,-151.0,0.000221,7]
[364275620,1749055841460,-158.720593,0.00022155,7]
[364275621,1749055841470,-192.6272,0.00022155,7]
[364275622,1749055841480,-192.6272,0.00022155,7]
[364275624,1749055841489,-164.926977,0.00022155,7]
[364275625,1749055841498,-1161.32,0.00022191,2]
[364275626,1749055841508,-952.84,0.00022191,2]
[364275628,1749055841517,-921.34,0.00022191,2]
[364275629,1749055841526,-786.55,0.00022191,2]
[364275630,1749055841536,-942.56,0.00022191,2]
[364275631,1749055841550,-440.0,0.00022191,2]
[364275632,1749055841559,-1239.53,0.000222,7]
[364275633,1749055841569,-966.57720118,0.00022245,6]
[364275634,1749055841578,-1500.0,0.00022246,2]
[364275635,1749055841588,-329.57155879,0.00022246,2]
[364275636,1749055841597,-1800.0,0.0002226,2]
[364275637,1749055841607,-480.129086,0.00022336,2]
[364275638,1749055841618,-1800.0,0.00022336,2]
[364275639,1749055841629,-1500.0,0.00022365,2]
[364275640,1749055841638,-151.0,0.00022439,2]
[364275641,1749055841648,-256.30160739,0.00022439,2]
[364275642,1749055841657,-151.0,0.00022439,2]
[364275643,1749055841666,-151.0,0.00022439,2]
[364275644,1749055841676,-151.0,0.00022439,2]
[364275645,1749055841685,-151.0,0.00022439,2]
[364275646,1749055841694,-500.0,0.00022439,2]
[364275647,1749055841704,-12500.0,0.00022439,2]
[364275648,1749055841713,-12500.0,0.00022448,2]
[364275649,1749055841721,-12500.0,0.00022457,2]
[364275650,1749055841730,-800.0,0.0002246,2]
[364275651,1749055841739,-1161.32,0.00022465,2]
[364275652,1749055841748,-952.84,0.00022465,2]
[364275653,1749055841758,-921.34,0.00022465,2]
[364275654,1749055841767,-786.55,0.00022465,2]
[364275655,1749055841776,-942.56,0.00022465,2]
[364275656,1749055841786,-500.0,0.00022465,2]
[364275657,1749055841795,-418.73,0.00022465,2]
[364275658,1749055841806,-151.0,0.00022466,2]
[364275659,1749055841815,-500.0,0.00022466,2]
[364275660,1749055841825,-966.57720118,0.00022486,7]
[364275661,1749055841836,-500.0,0.00022494,2]
[364275662,1749055841846,-306.0,0.00022521,2]
[364275663,1749055841856,-312.5513002,0.00022521,2]
[364275664,1749055841865,-500.0,0.00022521,2]
[364275665,1749055841875,-1000.0,0.00022548,2]
[364275666,1749055841884,-1000.0,0.00022548,2]
[364275667,1749055841894,-1000.0,0.00022548,2]
[364275668,1749055841903,-500.0,0.00022549,2]
[364275669,1749055841912,-500.0,0.00022576,2]
[364275670,1749055841922,-2000.0,0.00022599,2]
[364275671,1749055841931,-500.0,0.00022603,2]
[364275672,1749055841941,-412.31268897,0.00022631,2]
[364275673,1749055841951,-966.57720118,0.00022728,7]
[364275674,1749055841960,-1161.33,0.00022739,2]
[364275675,1749055841970,-952.84,0.00022739,2]
[364275676,1749055841981,-921.34,0.00022739,2]
[364275677,1749055841993,-786.56,0.00022739,2]
[364275678,1749055842003,-942.77999999,0.00022739,2]
[364275679,1749055842012,-2000.0,0.00022794,2]
[364275680,1749055842022,-207.4,0.00022873,2]
[364275681,1749055842033,-500.0,0.00022873,2]
[364275682,1749055842043,-500.0,0.00022873,2]
[364275683,1749055842054,-500.0,0.00022873,2]
[364275684,1749055842063,-500.0,0.00022873,2]
[364275685,1749055842073,-500.0,0.00022873,2]
[364275686,1749055842083,-500.0,0.00022873,2]
[364275687,1749055842092,-500.0,0.00022873,2]
[364275688,1749055842101,-500.0,0.00022873,2]
[364275689,1749055842111,-5000.0,0.00022873,2]
[364275690,1749055842120,-500.0,0.00022873,2]
[364275691,1749055842130,-500.0,0.00022873,2]
[364275692,1749055842140,-500.0,0.00022873,2]
[364275693,1749055842149,-500.0,0.00022873,2]
[364275694,1749055842159,-500.0,0.00022873,2]
[364275695,1749055842169,-500.0,0.00022873,2]
[364275696,1749055842178,-500.0,0.00022873,2]
[364275697,1749055842187,-2400.0,0.00022884,2]
[364275698,1749055842197,-1265.90172201,0.000229,2]
[364275699,1749055842207,-49565.63,0.000229,2]
[364275700,1749055842216,-500.0,0.00022913,2]
[364275701,1749055842226,-966.57720118,0.00022969,8]
[364275702,1749055842236,-176.312334,0.00023,7]
[364275703,1749055842245,-192.6272,0.00023,7]
[364275704,1749055842255,-192.6272,0.00023,7]
[364275705,1749055842264,-89810.44,0.00023,7]
[364275706,1749055842274,-953.07455259,0.00023013,2]
[364275707,1749055842284,-921.53,0.00023013,2]
[364275709,1749055842293,-1500.0,0.00023096,2]
[364275711,1749055842303,-623.70667292,0.00023096,2]
[364275712,1749055842313,-262.180723,0.000231,2]
[364275713,1749055842322,-262.180723,0.000231,2]
[364275714,1749055842332,-151.0,0.000231,7]
[364275715,1749055842341,-998.56595591,0.00023147,2]
[364275716,1749055842351,-151.0,0.000232,7]
[364275717,1749055842364,-151.0,0.000232,5]
[364275718,1749055842373,-151.0,0.000232,7]
[364275719,1749055842383,-966.57720118,0.0002321,8]
[364275720,1749055842392,-600.0,0.0002325,2]
[364275722,1749055842402,-200.0,0.00023287,2]
[364275725,1749055842412,-200.0,0.00023287,2]
[364275728,1749055842421,-200.0,0.00023287,2]
[364275731,1749055842430,-200.0,0.00023287,2]
[364275734,1749055842439,-200.0,0.00023287,2]
[364275737,1749055842449,-200.0,0.00023287,2]
[364275741,1749055842458,-200.0,0.00023287,2]
[364275746,1749055842467,-200.0,0.00023287,2]
[364275751,1749055842476,-200.0,0.00023287,2]
[364275757,1749055842489,-200.0,0.00023287,2]
[364275760,1749055842498,-228.77609889,0.00023287,2]
[364275762,1749055842507,-540.27,0.000233,7]
[364275764,1749055842516,-1000.0,0.00023342,2]
[364275765,1749055842527,-1800.0,0.00023356,2]
[364275767,1749055842541,-19186.22,0.000234,9]
[364275769,1749055842550,-4439.65,0.000234,9]
[364275770,1749055842562,-5000.0,0.00023421,2]
[364275773,1749055842573,-3000.0,0.00023432,2]
[364275776,1749055842582,-966.57720118,0.00023452,9]
[364275778,1749055842591,-962.0,0.00023467,2]
[364275781,1749055842601,-495.838,0.00023467,2]
[364275783,1749055842612,-2229.0,0.00023467,2]
[364275786,1749055842623,-709.0,0.00023467,2]
[364275789,1749055842632,-247.364,0.00023467,2]
[364275792,1749055842642,-600.0,0.00023492,2]
[364275794,1749055842651,-192.6272,0.000235,7]
[364275797,1749055842661,-192.6272,0.000235,7]
[364275799,1749055842671,-2200.0,0.00023514,2]
[364275802,1749055842682,-956.162843,0.0002352,3]
[364275805,1749055842691,-2010.02909599,0.00023644,2]
[364275808,1749055842700,-966.57720118,0.00023693,9]
[364275811,1749055842710,-262.180723,0.000237,2]
[364275813,1749055842719,-262.180723,0.000237,2]
[364275816,1749055842728,-151.0,0.000237,7]
[364275819,1749055842738,-192.6272,0.000237,7]
[364275822,1749055842747,-192.6272,0.000237,7]
[364275824,1749055842756,-183.60593342,0.000237,4]
[364275827,1749055842766,-183.60593342,0.000237,4]
[364275829,1749055842775,-183.60593342,0.000237,4]
[364275832,1749055842784,-183.60593342,0.000237,4]
[364275835,1749055842794,-183.60593342,0.000237,4]
[364275838,1749055842803,-183.60593342,0.000237,4]
[364275841,1749055842813,-183.60593342,0.000237,4]
[364275843,1749055842822,-183.60593342,0.000237,4]
[364275846,1749055842832,-183.60593342,0.000237,4]
[364275849,1749055842842,-183.60593342,0.000237,4]
[364275851,1749055842851,-183.60593342,0.000237,4]
[364275854,1749055842861,-183.60593342,0.000237,4]
[364275857,1749055842870,-183.60593342,0.000237,4]
[364275859,1749055842880,-183.60593342,0.000237,4]
[364275862,1749055842890,-183.60593342,0.000237,4]
[364275864,1749055842899,-183.60593342,0.000237,4]
[364275866,1749055842908,-183.60593342,0.000237,4]
[364275868,1749055842918,-183.60593342,0.000237,4]
[364275870,1749055842927,-183.60593342,0.000237,4]
[364275873,1749055842937,-183.6,0.000237,4]
[364275875,1749055842947,-428.41384464,0.000237,4]
[364275877,1749055842956,-428.41384464,0.000237,4]
[364275879,1749055842965,-428.41384464,0.000237,4]
[364275881,1749055842975,-428.41384464,0.000237,4]
[364275883,1749055842985,-428.41384464,0.000237,4]
[364275886,1749055842994,-428.41384464,0.000237,4]
[364275888,1749055843003,-428.41384464,0.000237,4]
[364275890,1749055843013,-428.41384464,0.000237,4]
[364275892,1749055843023,-428.41384464,0.000237,4]
[364275894,1749055843032,-428.41384464,0.000237,4]
[364275896,1749055843041,-428.41384464,0.000237,4]
[364275898,1749055843051,-428.41384464,0.000237,4]
[364275900,1749055843062,-428.41384464,0.000237,4]
[364275902,1749055843071,-428.41384464,0.000237,4]
[364275904,1749055843081,-428.41384464,0.000237,4]
[364275906,1749055843090,-428.41384464,0.000237,4]
[364275908,1749055843100,-428.41384464,0.000237,4]
[364275910,1749055843109,-428.41384464,0.000237,4]
[364275912,1749055843119,-155.05478643,0.000237,4]
[364275914,1749055843130,-155.05478643,0.000237,4]
[364275916,1749055843140,-155.05478643,0.000237,4]
[364275918,1749055843149,-155.05478643,0.000237,4]
[364275921,1749055843159,-155.05478643,0.000237,4]
[364275922,1749055843169,-155.05478643,0.000237,4]
[364275924,1749055843178,-155.05478643,0.000237,4]
[364275926,1749055843188,-155.05478643,0.000237,4]
[364275928,1749055843198,-155.05478643,0.000237,4]
[364275931,1749055843207,-155.05478643,0.000237,4]
[364275933,1749055843217,-155.05478643,0.000237,4]
[364275935,1749055843227,-155.05478643,0.000237,4]
[364275937,1749055843237,-155.05,0.000237,4]
[364275939,1749055843246,-235.16642608,0.000237,4]
[364275941,1749055843258,-235.16642608,0.000237,4]
[364275943,1749055843267,-235.16642608,0.000237,4]
[364275945,1749055843277,-235.16642608,0.000237,4]
[364275947,1749055843286,-235.16642608,0.000237,4]
[364275949,1749055843295,-235.16642608,0.000237,4]
[364275951,1749055843305,-235.16642608,0.000237,4]
[364275953,1749055843315,-235.16642608,0.000237,4]
[364275955,1749055843324,-235.16642608,0.000237,4]
[364275957,1749055843333,-175.37431229,0.000237,2]
[364275958,1749055843343,-235.16642608,0.000237,4]
[364275960,1749055843352,-235.16642608,0.000237,4]
[364275962,1749055843362,-235.16642608,0.000237,4]
[364275964,1749055843371,-235.16642608,0.000237,4]
[364275966,1749055843380,-235.16642608,0.000237,4]
[364275968,1749055843390,-235.16642608,0.000237,4]
[364275970,1749055843399,-235.16642608,0.000237,4]
[364275972,1749055843409,-235.16642608,0.000237,4]
[364275974,1749055843418,-235.16642608,0.000237,4]
[364275976,1749055843427,-296.96600972,0.000237,4]
[364275978,1749055843436,-296.96600972,0.000237,4]
[364275980,1749055843445,-296.96600972,0.000237,4]
[364275982,1749055843455,-296.96600972,0.000237,4]
[364275984,1749055843465,-296.96600972,0.000237,4]
[364275986,1749055843474,-296.96600972,0.000237,4]
[364275988,1749055843484,-296.96600972,0.000237,4]
[364275990,1749055843494,-296.96600972,0.000237,4]
[364275992,1749055843503,-296.96600972,0.000237,4]
[364275994,1749055843513,-296.96600972,0.000237,4]
[364275996,1749055843522,-296.96600972,0.000237,4]
[364275998,1749055843533,-296.96600972,0.000237,4]
[364276000,1749055843544,-296.96600972,0.000237,4]
[364276002,1749055843553,-296.96600972,0.000237,4]
[364276004,1749055843563,-296.96600972,0.000237,4]
[364276006,1749055843573,-296.96600972,0.000237,4]
[364276009,1749055843583,-296.96600972,0.000237,4]
[364276011,1749055843593,-296.96600972,0.000237,4]
[364276013,1749055843602,-296.96600972,0.000237,4]
[364276015,1749055843613,-296.96,0.000237,4]
[364276017,1749055843622,-692.92068935,0.000237,4]
[364276019,1749055843632,-534.54005372,0.000237,4]
[364276051,1749055843934,-440.0,0.0001726,2]
[364276053,1749055843944,-440.0,0.00017534,2]
[364276055,1749055843954,-440.0,0.00017808,2]
[364276057,1749055843964,-440.0,0.00018082,2]
[364276059,1749055843974,-440.0,0.00018356,2]
[364276061,1749055843984,-440.0,0.0001863,2]
[364276063,1749055843993,-440.0,0.00018904,2]
[364276065,1749055844002,-440.0,0.00019178,2]
[364276067,1749055844011,-440.0,0.00019452,2]
[364276069,1749055844021,-158.38063563,0.000237,4]
[364276071,1749055844031,-692.92068935,0.000237,4]
[364276073,1749055844040,-692.92068935,0.000237,4]
[364276075,1749055844051,-692.92068935,0.000237,4]
[364276077,1749055844063,-692.92068935,0.000237,4]
[364276079,1749055844072,-692.92068935,0.000237,4]
[364276081,1749055844082,-692.92068935,0.000237,4]
[364276084,1749055844092,-692.92068935,0.000237,4]
[364276086,1749055844102,-692.92068935,0.000237,4]
[364276099,1749055844226,-692.92068935,0.000237,4]
[364276101,1749055844237,-692.92068935,0.000237,4]
[364276103,1749055844248,-692.92068935,0.000237,4]
[364276105,1749055844258,-692.92068935,0.000237,4]
[364276107,1749055844267,-692.92068935,0.000237,4]
[364276109,1749055844277,-692.92068935,0.000237,4]
[364276111,1749055844286,-692.92068935,0.000237,4]
[364276113,1749055844296,-692.92068935,0.000237,4]
[364276115,1749055844308,-188.5182,0.00023744,2]
[364276117,1749055844317,-428.41384464,0.00023781,4]
[364276119,1749055844328,-235.16642608,0.00023781,4]
[364276121,1749055844338,-692.92068935,0.00023781,4]
[364276123,1749055844348,-151.0,0.00023799,2]
[364276125,1749055844358,-110468.06147435,0.000238,3]
[364276128,1749055844371,-22046.0,0.000238,3]
[364276130,1749055844383,-602.88017538,0.000238,3]
[364276132,1749055844395,-460.0253286,0.000238,3]
[364276134,1749055844407,-330.154,0.000238,3]
[364276137,1749055844419,-3134.719996,0.000238,3]
[364276144,1749055844482,-440.0,0.00019726,2]
[364276146,1749055844492,-300.0,0.0002,2]
[364276148,1749055844501,-14503.64999518,0.000238,3]
[364276150,1749055844513,-4344.77911314,0.000238,3]
[364276153,1749055844524,-17115.65082793,0.000238,3]
[364276296,1749055846032,-440.0,0.00016438,2]
[364276298,1749055846042,-39.97459874,0.00016438,2]
[364276301,1749055846056,-400.02540126,0.00016438,2]
[364276303,1749055846066,-440.0,0.00016711,2]
[364276305,1749055846076,-563.51,0.00016712,2]
[364276307,1749055846086,-440.0,0.00016712,2]
[364276309,1749055846096,-440.0,0.00016986,2]
[364276311,1749055846106,-440.0,0.0001726,2]
[364276313,1749055846116,-500.0,0.00022439,2]
[364276315,1749055846126,-496.72094998,0.00022466,2]
[364278281,1749056258646,24900.0,0.00015506,2]
[364278309,1749056972311,167.259031,0.00013699,2]
[364278375,1749057037943,-168.19204084,0.00016324,2]
[364278377,1749057037954,-225.43383948,0.00016424,2]
[364278379,1749057037967,-1200.0,0.00016436,2]
[364278381,1749057037976,-300.0,0.00016437,2]
[364278383,1749057037986,-300.0,0.00016437,2]
[364278385,1749057037997,-300.0,0.00016437,2]
[364278387,1749057038006,-300.0,0.00016437,2]
[364278389,1749057038016,-300.0,0.00016437,2]
[364278391,1749057038025,-581.37663522,0.00016438,2]
[364278393,1749057038035,-440.0,0.00016438,2]
[364278395,1749057038045,-284.99749481,0.00016438,2]
[364278397,1749057038057,-155.00250519,0.00016438,2]
[364278399,1749057038068,-430.0,0.00016438,2]
[364278401,1749057038083,-563.39586854,0.00016438,2]
[364278403,1749057038093,-430.0,0.00016438,2]
[364278405,1749057038103,-430.0,0.00016438,2]
[364278407,1749057038113,-131.60162627,0.00016438,2]
[364278410,1749057038126,-308.39837373,0.00016438,2]
[364278412,1749057038135,-430.0,0.00016438,2]
[364278414,1749057038145,-577.17382193,0.00016438,2]
[364278416,1749057038154,-430.0,0.00016438,2]
[364278418,1749057038164,-430.0,0.00016438,2]
[364278420,1749057038174,-589.86,0.00016438,2]
[364278422,1749057038184,-408.48,0.00016438,2]
[364278424,1749057038194,-440.0,0.00016438,2]
[364278426,1749057038204,-440.0,0.00016438,2]
[364278428,1749057038214,-440.0,0.00016438,2]
[364278430,1749057038224,-440.0,0.00016438,2]
[364278432,1749057038234,-440.0,0.00016438,2]
[364278434,1749057038244,-440.0,0.00016438,2]
[364278436,1749057038253,-203.14117043,0.00016438,2]
[364278438,1749057038263,-440.0,0.00016438,2]
[364278440,1749057038272,-440.0,0.00016438,2]
[364278442,1749057038282,-430.0,0.00016438,2]
[364278444,1749057038291,-440.0,0.00016438,2]
[364278446,1749057038301,-440.0,0.00016438,2]
[364278448,1749057038311,-430.0,0.00016438,2]
[364278450,1749057038320,-440.0,0.00016438,2]
[364278452,1749057038329,-440.0,0.00016438,2]
[364278454,1749057038338,-440.0,0.00016438,2]
[364278456,1749057038348,-440.0,0.00016438,2]
[364278458,1749057038358,-440.0,0.00016438,2]
[364278460,1749057038369,-440.0,0.00016438,2]
[364278462,1749057038379,-440.0,0.00016438,2]
[364278464,1749057038389,-440.0,0.00016438,2]
[364278466,1749057038399,-440.0,0.00016438,2]
[364278468,1749057038409,-440.0,0.00016438,2]
[364278470,1749057038421,-440.0,0.00016438,2]
[364278472,1749057038434,-440.0,0.00016438,2]
[364278474,1749057038444,-440.0,0.00016438,2]
[364278476,1749057038454,-440.0,0.00016438,2]
[364278478,1749057038464,-440.0,0.00016438,2]
[364278480,1749057038473,-346.36,0.00016438,2]
[364278482,1749057038483,-440.0,0.00016438,2]
[364278484,1749057038492,-440.0,0.00016438,2]
[364278486,1749057038501,-440.0,0.00016438,2]
[364278488,1749057038511,-199.99999999,0.00016438,2]
[364278490,1749057038521,-440.0,0.00016438,2]
[364278492,1749057038531,-440.0,0.00016438,2]
[364278494,1749057038541,-440.0,0.00016438,2]
[364278496,1749057038551,-430.0,0.00016438,2]
[364278498,1749057038560,-440.0,0.00016438,2]
[364278500,1749057038570,-370.9535,0.00016438,2]
[364278502,1749057038580,-440.0,0.00016438,2]
[364278504,1749057038589,-440.0,0.00016438,2]
[364278506,1749057038599,-440.0,0.00016438,2]
[364278508,1749057038608,-440.0,0.00016438,2]
[364278510,1749057038617,-440.0,0.00016438,2]
[364278512,1749057038627,-440.0,0.00016438,2]
[364278514,1749057038637,-575.26851512,0.00016438,2]
[364278516,1749057038647,-440.0,0.00016438,2]
[364278518,1749057038656,-439.37059374,0.00016438,2]
[364278520,1749057038666,-440.0,0.00016438,2]
[364278522,1749057038675,-440.0,0.00016438,2]
[364278524,1749057038685,-440.0,0.00016438,2]
[364278525,1749057038695,-440.0,0.00016438,2]
[364278527,1749057038704,-440.0,0.00016438,2]
[364278529,1749057038714,-430.0,0.00016438,2]
[364278531,1749057038723,-440.0,0.00016438,2]
[364278533,1749057038734,-440.0,0.00016438,2]
[364278535,1749057038743,-440.0,0.00016438,2]
[364278537,1749057038752,-440.0,0.00016438,2]
[364278539,1749057038762,-457.39357246,0.00016438,2]
[364278541,1749057038771,-440.0,0.00016438,2]
[364278543,1749057038782,-440.0,0.00016438,2]
[364278545,1749057038792,-430.0,0.00016438,2]
[364278547,1749057038802,-388.76907568,0.00016612,2]
[364278549,1749057038812,-438.97832312,0.00016712,2]
[364278551,1749057038822,-431.95115847,0.00016712,2]
[364278553,1749057038831,-517.681607,0.00016712,2]
[364278555,1749057038841,-440.0,0.00016712,2]
[364278557,1749057038850,-440.0,0.00016712,2]
[364278559,1749057038859,-440.0,0.00016712,2]
[364278561,1749057038869,-440.0,0.00016712,2]
[364278564,1749057038881,-440.0,0.00016712,2]
[364278566,1749057038891,-440.0,0.00016712,2]
[364278568,1749057038900,-437.92074179,0.00016712,2]
[364278570,1749057038910,-440.0,0.00016712,2]
[364278572,1749057038920,-440.0,0.00016712,2]
[364278573,1749057038929,-440.0,0.00016712,2]
[364278575,1749057038939,-440.0,0.00016712,2]
[364278577,1749057038948,-440.0,0.00016712,2]
[364278579,1749057038961,-440.0,0.00016712,2]
[364278581,1749057038971,-440.0,0.00016712,2]
[364278583,1749057038980,-440.0,0.00016712,2]
[364278585,1749057038990,-440.0,0.00016712,2]
[364278587,1749057038999,-440.0,0.00016712,2]
[364278589,1749057039009,-440.0,0.00016712,2]
[364278591,1749057039019,-440.0,0.00016712,2]
[364278593,1749057039029,-440.0,0.00016712,2]
[364278595,1749057039040,-440.0,0.00016712,2]
[364278597,1749057039049,-440.0,0.00016712,2]
[364278599,1749057039058,-440.0,0.00016712,2]
[364278601,1749057039068,-413.60155761,0.00016712,2]
[364278603,1749057039077,-438.66104185,0.00016712,2]
[364278605,1749057039086,-440.0,0.00016712,2]
[364278607,1749057039096,-440.0,0.00016712,2]
[364278609,1749057039106,-440.31551229,0.00016712,2]
[364278611,1749057039115,-462.48927537,0.00016712,2]
[364278613,1749057039127,-440.0,0.00016712,2]
[364278614,1749057039137,-440.0,0.00016712,2]
[364278616,1749057039147,-440.0,0.00016712,2]
[364278618,1749057039156,-440.0,0.00016712,2]
[364278620,1749057039165,-440.0,0.00016712,2]
[364278622,1749057039175,-438.92870979,0.00016712,2]
[364278624,1749057039184,-440.0,0.00016712,2]
[364278626,1749057039193,-440.0,0.00016712,2]
[364278628,1749057039203,-480.1687147,0.00016712,2]
[364278630,1749057039213,-440.0,0.00016712,2]
[364278632,1749057039223,-434.95503632,0.00016712,2]
[364278633,1749057039232,-440.0,0.00016712,2]
[364278634,1749057039243,-440.0,0.00016712,2]
[364278635,1749057039252,-440.0,0.00016712,2]
[364278636,1749057039261,-440.0,0.00016712,2]
[364278637,1749057039271,-440.0,0.00016712,2]
[364278638,1749057039280,-440.0,0.00016712,2]
[364278639,1749057039289,-440.0,0.00016712,2]
[364278640,1749057039298,-449.40865632,0.00016712,2]
[364278642,1749057039308,-440.0,0.00016712,2]
[364278644,1749057039317,-440.0,0.00016712,2]
[364278646,1749057039326,-440.0,0.00016985,2]
[364278648,1749057039336,-430.0,0.00016985,2]
[364278650,1749057039346,-440.0,0.00016985,2]
[364278652,1749057039355,-440.0,0.00016985,2]
[364278654,1749057039365,-440.0,0.00016985,2]
[364278656,1749057039377,-440.0,0.00016985,2]
[364278658,1749057039387,-440.0,0.00016985,2]
[364278660,1749057039397,-440.0,0.00016985,2]
[364278662,1749057039406,-440.0,0.00016985,2]
[364278664,1749057039415,-440.0,0.00016985,2]
[364278666,1749057039425,-440.0,0.00016985,2]
[364278668,1749057039434,-440.0,0.00016985,2]
[364278670,1749057039443,-440.0,0.00016986,2]
[364278672,1749057039453,-440.0,0.00016986,2]
[364278674,1749057039462,-440.0,0.00016986,2]
[364278676,1749057039472,-440.0,0.00016986,2]
[364278678,1749057039481,-440.0,0.00016986,2]
[364278680,1749057039491,-440.0,0.00016986,2]
[364278682,1749057039500,-440.0,0.00016986,2]
[364278684,1749057039510,-440.0,0.00016986,2]
[364278686,1749057039519,-440.0,0.00016986,2]
[364278689,1749057039529,-440.0,0.00016986,2]
[364278692,1749057039538,-440.0,0.00016986,2]